[Event "*** Titled Tuesday Blitz"]
[Site "Chess.com"]
[Date "2020.05.05"]
[Round "2"]
[White "TheCavemanChesss"]
[Black "TheoSlade"]
[Result "1-0"]
[WhiteElo "2510"]
[BlackElo "2275"]
[TimeControl "180+1"]
[EndTime "10:15:36 PDT"]
[Termination "TheCavemanChesss won by checkmate"]

1. e4 {[%clk 0:03:00.9]} 1... e5 {[%clk 0:03:00.2]} 2. Nf3 {[%clk 0:03:00.2]}
2... Nc6 {[%clk 0:03:00.6]} 3. Bb5 {[%clk 0:03:00.6]} 3... Nf6 {[%clk
0:03:00.9]} 4. O-O {[%clk 0:03:00.2]} 4... Nxe4 {[%clk 0:03:01.4]} 5. Re1 {[%clk
0:02:59.7]} 5... Nd6 {[%clk 0:03:01.8]} 6. a4 {[%clk 0:03:00.3]} 6... Be7 {[%clk
0:02:49.5]} 7. Nc3 {[%clk 0:03:00.2]} 7... f6 {[%clk 0:02:38.6]} 8. d4 {[%clk
0:02:58.6]} 8... exd4 {[%clk 0:02:30.7]} 9. Nd5 {[%clk 0:02:53]} 9... Nf5 {[%clk
0:02:06.1]} 10. g4 {[%clk 0:02:23.9]} 10... O-O {[%clk 0:01:32.3]} 11. gxf5
{[%clk 0:02:21.2]} 11... Bc5 {[%clk 0:01:32.5]} 12. Bc4 {[%clk 0:02:11.5]} 12...
Kh8 {[%clk 0:01:31]} 13. Nh4 {[%clk 0:02:11.8]} 13... Ne5 {[%clk 0:01:25.2]} 14.
Rxe5 {[%clk 0:02:12]} 14... fxe5 {[%clk 0:01:23.7]} 15. Qh5 {[%clk 0:02:12.9]}
15... h6 {[%clk 0:00:55.5]} 16. Bxh6 {[%clk 0:02:11.1]} 16... Be7 {[%clk
0:00:18.2]} 17. Bc1+ {[%clk 0:02:04]} 17... Kg8 {[%clk 0:00:17.3]} 18. Nf6#
{[%clk 0:01:59.2]} 1-0

[Event "*** Titled Tuesday Blitz"]
[Site "Chess.com"]
[Date "2020.05.05"]
[Round "2"]
[White "Nellichka"]
[Black "LeonValdes"]
[Result "0-1"]
[WhiteElo "2076"]
[BlackElo "2379"]
[TimeControl "180+1"]
[EndTime "10:16:00 PDT"]
[Termination "LeonValdes won by resignation"]

1. d4 {[%clk 0:03:00.9]} 1... Nf6 {[%clk 0:02:59.4]} 2. c4 {[%clk 0:02:59.5]}
2... e6 {[%clk 0:02:57.8]} 3. Nc3 {[%clk 0:02:58.5]} 3... Bb4 {[%clk 0:02:57.9]}
4. e3 {[%clk 0:02:57.8]} 4... O-O {[%clk 0:02:53.2]} 5. Ne2 {[%clk 0:02:55.3]}
5... c6 {[%clk 0:02:53.2]} 6. a3 {[%clk 0:02:52.3]} 6... Ba5 {[%clk 0:02:53.2]}
7. b4 {[%clk 0:02:50.9]} 7... Bc7 {[%clk 0:02:53.6]} 8. f4 {[%clk 0:02:38.5]}
8... d5 {[%clk 0:02:52.3]} 9. c5 {[%clk 0:02:34.7]} 9... b6 {[%clk 0:02:46.6]}
10. Ng1 {[%clk 0:02:23.8]} 10... a5 {[%clk 0:02:42.6]} 11. Bb2 {[%clk
0:02:21.9]} 11... Ba6 {[%clk 0:02:31.3]} 12. Bd3 {[%clk 0:01:56.9]} 12... Bxd3
{[%clk 0:02:20]} 13. Qxd3 {[%clk 0:01:55.6]} 13... axb4 {[%clk 0:02:02.7]} 14.
axb4 {[%clk 0:01:54.1]} 14... Rxa1+ {[%clk 0:02:03.6]} 15. Bxa1 {[%clk
0:01:53.2]} 15... bxc5 {[%clk 0:02:02.6]} 16. bxc5 {[%clk 0:01:50.6]} 16... Qc8
{[%clk 0:01:55.2]} 17. Nf3 {[%clk 0:01:41.4]} 17... Qa6 {[%clk 0:01:49.8]} 18.
Qd2 {[%clk 0:01:24.6]} 18... Ba5 {[%clk 0:01:43.5]} 19. Ne5 {[%clk 0:01:09.7]}
19... Ne4 {[%clk 0:01:40.6]} 20. Qc1 {[%clk 0:00:59.7]} 20... f6 {[%clk
0:01:36.6]} 21. Nf3 {[%clk 0:00:50.1]} 21... Qd3 {[%clk 0:01:31]} 0-1

[Event "*** Titled Tuesday Blitz"]
[Site "Chess.com"]
[Date "2020.05.05"]
[Round "2"]
[White "Sweafty"]
[Black "yarosavich"]
[Result "1-0"]
[WhiteElo "2515"]
[BlackElo "2714"]
[TimeControl "180+1"]
[EndTime "10:16:13 PDT"]
[Termination "Sweafty won by resignation"]

1. Nf3 {[%clk 0:03:00.9]} 1... d5 {[%clk 0:02:55.9]} 2. c4 {[%clk 0:03:00.9]}
2... d4 {[%clk 0:02:55.5]} 3. b4 {[%clk 0:03:01.1]} 3... c5 {[%clk 0:02:56.2]}
4. e3 {[%clk 0:02:59.9]} 4... Nf6 {[%clk 0:02:56.4]} 5. exd4 {[%clk 0:02:31.5]}
5... cxd4 {[%clk 0:02:54.1]} 6. Bb2 {[%clk 0:02:31.3]} 6... a5 {[%clk
0:02:16.2]} 7. Qa4+ {[%clk 0:01:26.2]} 7... Bd7 {[%clk 0:02:12.9]} 8. b5 {[%clk
0:01:26.7]} 8... e5 {[%clk 0:02:09.5]} 9. Nxe5 {[%clk 0:01:19]} 9... Bc5 {[%clk
0:02:09.4]} 10. Be2 {[%clk 0:01:10.3]} 10... O-O {[%clk 0:02:06.4]} 11. Nd3
{[%clk 0:01:00.9]} 11... b6 {[%clk 0:02:03.1]} 12. Nxc5 {[%clk 0:00:59.3]} 12...
bxc5 {[%clk 0:02:03.2]} 13. O-O {[%clk 0:01:00.2]} 13... Bf5 {[%clk 0:01:56.5]}
14. Qa3 {[%clk 0:00:55.7]} 14... Nbd7 {[%clk 0:01:53]} 15. d3 {[%clk 0:00:55.1]}
15... Re8 {[%clk 0:01:52.2]} 16. Bf3 {[%clk 0:00:55.4]} 16... Ra7 {[%clk
0:01:32.7]} 17. Nd2 {[%clk 0:00:55.4]} 17... Ne5 {[%clk 0:01:29.4]} 18. Qxc5
{[%clk 0:00:45.8]} 18... Rc7 {[%clk 0:01:27.7]} 19. Qxd4 {[%clk 0:00:44.4]}
19... Bxd3 {[%clk 0:01:20.1]} 20. Qxd8 {[%clk 0:00:42.1]} 20... Rxd8 {[%clk
0:01:18.2]} 21. Bxe5 {[%clk 0:00:42.4]} 21... Bxf1 {[%clk 0:01:12.9]} 22. Bxc7
{[%clk 0:00:42.5]} 22... Rxd2 {[%clk 0:01:12.4]} 23. Kxf1 {[%clk 0:00:42.5]} 1-0

[Event "*** Titled Tuesday Blitz"]
[Site "Chess.com"]
[Date "2020.05.05"]
[Round "2"]
[White "GMartin_Petrov"]
[Black "CastleOasisChess"]
[Result "1-0"]
[WhiteElo "2603"]
[BlackElo "2135"]
[TimeControl "180+1"]
[EndTime "10:16:13 PDT"]
[Termination "GMartin_Petrov won by resignation"]

1. e4 {[%clk 0:03:00.9]} 1... e6 {[%clk 0:03:00]} 2. d4 {[%clk 0:03:00.2]} 2...
d5 {[%clk 0:03:00.9]} 3. Nd2 {[%clk 0:03:00]} 3... c6 {[%clk 0:03:00.3]} 4. e5
{[%clk 0:02:48]} 4... c5 {[%clk 0:03:00]} 5. c3 {[%clk 0:02:47.7]} 5... Nc6
{[%clk 0:03:00.3]} 6. Ngf3 {[%clk 0:02:44.8]} 6... Bd7 {[%clk 0:02:59.6]} 7. Bd3
{[%clk 0:02:41.5]} 7... cxd4 {[%clk 0:02:58.2]} 8. cxd4 {[%clk 0:02:40.7]} 8...
Qb6 {[%clk 0:02:50.2]} 9. O-O {[%clk 0:02:37.2]} 9... Rc8 {[%clk 0:02:48.9]} 10.
Nb3 {[%clk 0:02:34.4]} 10... Nb4 {[%clk 0:02:45.4]} 11. Be2 {[%clk 0:02:30.1]}
11... Ba4 {[%clk 0:02:44]} 12. Bf4 {[%clk 0:02:18.6]} 12... Bxb3 {[%clk
0:02:43.9]} 13. Qxb3 {[%clk 0:02:16.7]} 13... Ne7 {[%clk 0:02:40.8]} 14. Rac1
{[%clk 0:02:15.4]} 14... Nbc6 {[%clk 0:02:32.7]} 15. Qa4 {[%clk 0:02:09.6]}
15... Nf5 {[%clk 0:02:22.1]} 16. g4 {[%clk 0:02:02.7]} 16... Ne7 {[%clk
0:02:06.8]} 17. Rc2 {[%clk 0:01:54.9]} 17... Qa5 {[%clk 0:01:46.4]} 18. Qb3
{[%clk 0:01:47.1]} 18... Qb4 {[%clk 0:01:44.4]} 19. Qxb4 {[%clk 0:01:40.6]}
19... Nxb4 {[%clk 0:01:44.5]} 20. Rxc8+ {[%clk 0:01:41.1]} 20... Nxc8 {[%clk
0:01:45]} 21. Rc1 {[%clk 0:01:40.9]} 21... Nc6 {[%clk 0:01:42.8]} 22. Ba6 {[%clk
0:01:36.5]} 22... bxa6 {[%clk 0:01:29.1]} 23. Rxc6 {[%clk 0:01:36.1]} 23... Kd7
{[%clk 0:01:29.9]} 24. Rc2 {[%clk 0:01:32.5]} 24... h6 {[%clk 0:01:18.8]} 25.
Nd2 {[%clk 0:01:30.3]} 25... Bb4 {[%clk 0:01:16.3]} 26. Nb3 {[%clk 0:01:29.5]}
26... Nb6 {[%clk 0:01:10.5]} 27. Bd2 {[%clk 0:01:25.7]} 27... Bxd2 {[%clk
0:01:10.4]} 28. Nc5+ {[%clk 0:01:24.8]} 28... Ke7 {[%clk 0:01:01.6]} 29. Rxd2
{[%clk 0:01:25.1]} 29... Nc4 {[%clk 0:00:58]} 30. Rc2 {[%clk 0:01:23.9]} 30...
Rb8 {[%clk 0:00:56.1]} 31. b3 {[%clk 0:01:23.2]} 31... a5 {[%clk 0:00:52]} 32.
bxc4 {[%clk 0:01:22.2]} 1-0

[Event "*** Titled Tuesday Blitz"]
[Site "Chess.com"]
[Date "2020.05.05"]
[Round "2"]
[White "AbdulovOrkhan"]
[Black "PawnEatingZombie"]
[Result "1-0"]
[WhiteElo "2403"]
[BlackElo "2150"]
[TimeControl "180+1"]
[EndTime "10:16:17 PDT"]
[Termination "AbdulovOrkhan won by resignation"]

1. e4 {[%clk 0:03:00.9]} 1... c6 {[%clk 0:02:59.7]} 2. d4 {[%clk 0:03:00.3]}
2... d5 {[%clk 0:03:00.1]} 3. Nd2 {[%clk 0:03:01.2]} 3... dxe4 {[%clk 0:03:00]}
4. Nxe4 {[%clk 0:03:02.1]} 4... Bf5 {[%clk 0:03:00]} 5. Ng3 {[%clk 0:03:01.9]}
5... Bg6 {[%clk 0:03:00]} 6. Nf3 {[%clk 0:03:02.3]} 6... Nd7 {[%clk 0:02:59.2]}
7. h4 {[%clk 0:03:02.8]} 7... h6 {[%clk 0:02:59.6]} 8. h5 {[%clk 0:03:03.5]}
8... Bh7 {[%clk 0:03:00.1]} 9. Bd3 {[%clk 0:03:04.1]} 9... Bxd3 {[%clk
0:03:00.6]} 10. Qxd3 {[%clk 0:03:05]} 10... e6 {[%clk 0:03:00.9]} 11. Bd2 {[%clk
0:03:05.4]} 11... Ngf6 {[%clk 0:03:00.5]} 12. O-O-O {[%clk 0:03:05.8]} 12... Be7
{[%clk 0:03:01]} 13. Kb1 {[%clk 0:03:01.5]} 13... Qb6 {[%clk 0:03:00.4]} 14. c4
{[%clk 0:02:59.6]} 14... Rd8 {[%clk 0:02:59.1]} 15. Bc3 {[%clk 0:02:59.8]} 15...
O-O {[%clk 0:02:17.5]} 16. Qe2 {[%clk 0:02:56.2]} 16... Bb4 {[%clk 0:02:08]} 17.
Bxb4 {[%clk 0:02:53.8]} 17... Qxb4 {[%clk 0:02:07.4]} 18. Ne5 {[%clk 0:02:54.7]}
18... a5 {[%clk 0:01:44.1]} 19. f4 {[%clk 0:02:51.9]} 19... a4 {[%clk 0:01:41]}
20. f5 {[%clk 0:02:40.3]} 20... exf5 {[%clk 0:01:31.8]} 21. Nxf5 {[%clk
0:02:41.2]} 21... a3 {[%clk 0:01:32]} 22. b3 {[%clk 0:02:38.3]} 22... Rfe8
{[%clk 0:01:26.3]} 23. Qe3 {[%clk 0:02:06.6]} 23... Nxe5 {[%clk 0:00:52.6]} 24.
dxe5 {[%clk 0:02:07.5]} 24... Rxd1+ {[%clk 0:00:52.5]} 25. Rxd1 {[%clk
0:02:05.3]} 25... Ng4 {[%clk 0:00:52.6]} 26. Qg3 {[%clk 0:02:03]} 26... g6
{[%clk 0:00:19]} 27. hxg6 {[%clk 0:02:02.9]} 27... Rxe5 {[%clk 0:00:08.7]} 28.
Qxg4 {[%clk 0:01:57.3]} 1-0

[Event "*** Titled Tuesday Blitz"]
[Site "Chess.com"]
[Date "2020.05.05"]
[Round "2"]
[White "ArnaudovP"]
[Black "Quaternitychess"]
[Result "0-1"]
[WhiteElo "2602"]
[BlackElo "2325"]
[TimeControl "180+1"]
[EndTime "10:16:23 PDT"]
[Termination "Quaternitychess won by resignation"]

1. Nf3 {[%clk 0:03:00.9]} 1... d5 {[%clk 0:02:59]} 2. d4 {[%clk 0:02:58.1]} 2...
Bf5 {[%clk 0:02:58.1]} 3. c4 {[%clk 0:02:56.7]} 3... e6 {[%clk 0:02:58.3]} 4.
Nc3 {[%clk 0:02:55.7]} 4... Nf6 {[%clk 0:02:56.9]} 5. Bf4 {[%clk 0:02:40.6]}
5... c6 {[%clk 0:02:53.8]} 6. e3 {[%clk 0:02:37.2]} 6... Bd6 {[%clk 0:02:44.7]}
7. Bxd6 {[%clk 0:02:34]} 7... Qxd6 {[%clk 0:02:44.1]} 8. Qb3 {[%clk 0:02:33.1]}
8... b6 {[%clk 0:02:40.9]} 9. Rc1 {[%clk 0:02:29.6]} 9... O-O {[%clk 0:02:39.7]}
10. Be2 {[%clk 0:02:28.8]} 10... Nbd7 {[%clk 0:02:38.7]} 11. O-O {[%clk
0:02:27.6]} 11... h6 {[%clk 0:02:37.8]} 12. cxd5 {[%clk 0:02:21.3]} 12... exd5
{[%clk 0:02:36.8]} 13. a3 {[%clk 0:02:20.4]} 13... a6 {[%clk 0:02:23.3]} 14. Na2
{[%clk 0:02:19.1]} 14... c5 {[%clk 0:02:21.4]} 15. dxc5 {[%clk 0:02:12.5]} 15...
bxc5 {[%clk 0:02:22.3]} 16. Qa4 {[%clk 0:02:01.6]} 16... Rfb8 {[%clk 0:01:43.6]}
17. b4 {[%clk 0:02:00.4]} 17... a5 {[%clk 0:01:43.9]} 18. bxc5 {[%clk
0:01:48.7]} 18... Nxc5 {[%clk 0:01:43.9]} 19. Qh4 {[%clk 0:01:49.2]} 19... Nce4
{[%clk 0:01:24.3]} 20. Nc3 {[%clk 0:01:41.7]} 20... Qxa3 {[%clk 0:01:23.5]} 21.
Nxe4 {[%clk 0:01:41.1]} 21... Bxe4 {[%clk 0:01:18.9]} 22. Nd4 {[%clk 0:01:38.4]}
22... a4 {[%clk 0:01:12.6]} 23. Ra1 {[%clk 0:01:36.7]} 23... Qb2 {[%clk
0:01:10.8]} 24. f3 {[%clk 0:01:27]} 24... Bg6 {[%clk 0:01:10.1]} 25. Qe1 {[%clk
0:01:24.8]} 25... a3 {[%clk 0:01:09.1]} 26. Qc1 {[%clk 0:01:20.2]} 26... a2
{[%clk 0:01:07.4]} 27. Kf2 {[%clk 0:01:12.2]} 27... Qxc1 {[%clk 0:00:58.9]} 28.
Rfxc1 {[%clk 0:01:11.7]} 28... Rb1 {[%clk 0:00:58.8]} 29. Rcxb1 {[%clk
0:01:08.2]} 29... axb1=Q {[%clk 0:00:55.4]} 0-1

[Event "*** Titled Tuesday Blitz"]
[Site "Chess.com"]
[Date "2020.05.05"]
[Round "2"]
[White "Simoncelli15"]
[Black "Muguet7"]
[Result "0-1"]
[WhiteElo "2236"]
[BlackElo "2466"]
[TimeControl "180+1"]
[EndTime "10:16:33 PDT"]
[Termination "Muguet7 won by resignation"]

1. e4 {[%clk 0:03:00.9]} 1... c5 {[%clk 0:02:59.2]} 2. Nf3 {[%clk 0:03:01.2]}
2... e6 {[%clk 0:02:58.6]} 3. d4 {[%clk 0:03:01.4]} 3... cxd4 {[%clk 0:02:58.5]}
4. Nxd4 {[%clk 0:03:02.3]} 4... a6 {[%clk 0:02:58.6]} 5. c4 {[%clk 0:03:03]}
5... Nf6 {[%clk 0:02:58]} 6. Nc3 {[%clk 0:03:03.2]} 6... Qc7 {[%clk 0:02:56.4]}
7. a3 {[%clk 0:03:02.8]} 7... d6 {[%clk 0:02:56.3]} 8. Be2 {[%clk 0:03:03.3]}
8... Be7 {[%clk 0:02:56.2]} 9. O-O {[%clk 0:03:03.3]} 9... O-O {[%clk
0:02:56.1]} 10. Be3 {[%clk 0:03:03.9]} 10... b6 {[%clk 0:02:53.4]} 11. Rc1
{[%clk 0:03:03]} 11... Bb7 {[%clk 0:02:52.7]} 12. f3 {[%clk 0:03:03.6]} 12...
Nbd7 {[%clk 0:02:52.2]} 13. Qe1 {[%clk 0:03:03.8]} 13... Ne5 {[%clk 0:02:49.1]}
14. g4 {[%clk 0:03:01.8]} 14... Rac8 {[%clk 0:02:45]} 15. g5 {[%clk 0:03:01.6]}
15... Nfd7 {[%clk 0:02:44.3]} 16. f4 {[%clk 0:03:01.1]} 16... Ng6 {[%clk
0:02:21.3]} 17. h4 {[%clk 0:02:41]} 17... Nc5 {[%clk 0:02:14.2]} 18. h5 {[%clk
0:02:30.9]} 18... Nh8 {[%clk 0:02:09.9]} 19. Bf3 {[%clk 0:01:48.2]} 19... Nd3
{[%clk 0:02:09.3]} 20. Qg3 {[%clk 0:01:45.8]} 20... Nxc1 {[%clk 0:02:08.4]} 21.
Rxc1 {[%clk 0:01:44.6]} 21... Qd8 {[%clk 0:01:45.3]} 22. Nce2 {[%clk 0:01:33.9]}
22... b5 {[%clk 0:01:42.5]} 23. g6 {[%clk 0:01:27.6]} 23... hxg6 {[%clk
0:01:38.2]} 24. hxg6 {[%clk 0:01:27.3]} 24... Nxg6 {[%clk 0:01:38]} 25. Nxe6
{[%clk 0:01:27.1]} 25... fxe6 {[%clk 0:01:37.8]} 26. Qxg6 {[%clk 0:01:28]} 26...
Rf6 {[%clk 0:01:35.3]} 27. Qg3 {[%clk 0:01:21.7]} 27... Rxc4 {[%clk 0:01:34.8]}
28. Rxc4 {[%clk 0:01:19.2]} 28... bxc4 {[%clk 0:01:34.6]} 29. e5 {[%clk
0:01:19.9]} 29... dxe5 {[%clk 0:01:24.5]} 30. Bxb7 {[%clk 0:01:15.2]} 30... Qd1+
{[%clk 0:01:20.2]} 31. Kf2 {[%clk 0:01:11.4]} 31... exf4 {[%clk 0:01:19.9]} 32.
Bxf4 {[%clk 0:01:02.6]} 32... Bc5+ {[%clk 0:01:05.6]} 0-1

[Event "*** Titled Tuesday Blitz"]
[Site "Chess.com"]
[Date "2020.05.05"]
[Round "2"]
[White "chesstrainer2042"]
[Black "tan275"]
[Result "1-0"]
[WhiteElo "2435"]
[BlackElo "2189"]
[TimeControl "180+1"]
[EndTime "10:16:34 PDT"]
[Termination "chesstrainer2042 won on time"]

1. d4 {[%clk 0:02:47.8]} 1... Nf6 {[%clk 0:02:58.2]} 2. Bf4 {[%clk 0:02:46.7]}
2... d5 {[%clk 0:02:57.1]} 3. e3 {[%clk 0:02:47.1]} 3... c5 {[%clk 0:02:56.4]}
4. Nd2 {[%clk 0:02:47.2]} 4... g6 {[%clk 0:02:52.3]} 5. Ngf3 {[%clk 0:02:46.2]}
5... Bg7 {[%clk 0:02:51.9]} 6. dxc5 {[%clk 0:02:46.6]} 6... O-O {[%clk 0:02:49]}
7. c3 {[%clk 0:02:46.8]} 7... Nbd7 {[%clk 0:02:22.2]} 8. Nb3 {[%clk 0:02:46.3]}
8... a5 {[%clk 0:02:17.1]} 9. a4 {[%clk 0:02:45.8]} 9... Re8 {[%clk 0:01:53]}
10. Bb5 {[%clk 0:02:45.5]} 10... e5 {[%clk 0:01:34.4]} 11. Bg5 {[%clk
0:02:45.1]} 11... e4 {[%clk 0:00:51.9]} 12. Nfd4 {[%clk 0:02:44.4]} 12... Re7
{[%clk 0:00:31.4]} 13. O-O {[%clk 0:02:37.9]} 13... h6 {[%clk 0:00:28.1]} 14.
Bh4 {[%clk 0:02:36.1]} 14... Ne5 {[%clk 0:00:24.2]} 15. f3 {[%clk 0:02:30]}
15... exf3 {[%clk 0:00:22.5]} 16. Nxf3 {[%clk 0:02:29.9]} 16... g5 {[%clk
0:00:21.5]} 17. Nxe5 {[%clk 0:02:25]} 17... Rxe5 {[%clk 0:00:22.4]} 18. Bg3
{[%clk 0:02:23.5]} 18... Bg4 {[%clk 0:00:22.7]} 19. Qd2 {[%clk 0:02:20.3]} 19...
Ne4 {[%clk 0:00:22]} 20. Qd3 {[%clk 0:02:15.5]} 20... Nxg3 {[%clk 0:00:22.9]}
21. hxg3 {[%clk 0:02:15.2]} 21... Qe7 {[%clk 0:00:22.9]} 22. Rae1 {[%clk
0:02:13.7]} 22... h5 {[%clk 0:00:17.1]} 23. c4 {[%clk 0:02:11]} 23... dxc4
{[%clk 0:00:15.9]} 24. Bxc4 {[%clk 0:02:10.2]} 24... Rd8 {[%clk 0:00:14.4]} 25.
Rxf7 {[%clk 0:02:02.7]} 25... Qxf7 {[%clk 0:00:02.8]} 26. Qxd8+ {[%clk
0:02:01.6]} 1-0

[Event "*** Titled Tuesday Blitz"]
[Site "Chess.com"]
[Date "2020.05.05"]
[Round "2"]
[White "kuba2006"]
[Black "H3nriqueTV"]
[Result "1-0"]
[WhiteElo "2412"]
[BlackElo "2164"]
[TimeControl "180+1"]
[EndTime "10:16:34 PDT"]
[Termination "kuba2006 won by resignation"]

1. e4 {[%clk 0:03:00.9]} 1... c5 {[%clk 0:02:58.5]} 2. Nf3 {[%clk 0:03:00.8]}
2... b6 {[%clk 0:02:54.4]} 3. d4 {[%clk 0:02:58.7]} 3... cxd4 {[%clk 0:02:55.3]}
4. Nxd4 {[%clk 0:02:58.6]} 4... Bb7 {[%clk 0:02:54]} 5. Bd3 {[%clk 0:02:58.6]}
5... a6 {[%clk 0:02:42.8]} 6. O-O {[%clk 0:02:57.7]} 6... e6 {[%clk 0:02:43.4]}
7. Nc3 {[%clk 0:02:55.1]} 7... Qc7 {[%clk 0:02:43.7]} 8. Kh1 {[%clk 0:02:54.3]}
8... Nc6 {[%clk 0:02:43.7]} 9. Nxc6 {[%clk 0:02:51.7]} 9... Qxc6 {[%clk
0:02:44.6]} 10. f4 {[%clk 0:02:48.7]} 10... Nf6 {[%clk 0:02:41.2]} 11. Qe2
{[%clk 0:02:45.2]} 11... Bb4 {[%clk 0:02:29.7]} 12. Bd2 {[%clk 0:02:44.2]} 12...
O-O {[%clk 0:02:19.2]} 13. Rae1 {[%clk 0:02:43.2]} 13... d5 {[%clk 0:02:12.2]}
14. e5 {[%clk 0:02:42.9]} 14... Bxc3 {[%clk 0:02:08.2]} 15. Bxc3 {[%clk
0:02:30.1]} 15... Ne4 {[%clk 0:02:07.2]} 16. Bxe4 {[%clk 0:02:29.1]} 16... dxe4
{[%clk 0:02:05.9]} 17. Bd4 {[%clk 0:02:29.1]} 17... b5 {[%clk 0:02:04]} 18. c3
{[%clk 0:02:28.4]} 18... a5 {[%clk 0:01:59.5]} 19. a3 {[%clk 0:02:25.2]} 19...
b4 {[%clk 0:01:57.9]} 20. axb4 {[%clk 0:02:23.8]} 20... axb4 {[%clk 0:01:58.8]}
21. cxb4 {[%clk 0:02:23.2]} 21... Ba6 {[%clk 0:01:59]} 22. Qe3 {[%clk
0:02:14.6]} 22... Bxf1 {[%clk 0:01:58]} 23. Rxf1 {[%clk 0:02:15.5]} 23... Rfd8
{[%clk 0:01:56.7]} 24. Bc5 {[%clk 0:02:07.7]} 24... Rd3 {[%clk 0:01:53.9]} 25.
Qe2 {[%clk 0:02:07.1]} 25... Rad8 {[%clk 0:01:48.7]} 26. h3 {[%clk 0:01:57.9]}
26... Rd2 {[%clk 0:01:32.4]} 27. Qg4 {[%clk 0:01:57.3]} 27... e3 {[%clk
0:01:31]} 28. Bxe3 {[%clk 0:01:55]} 28... h5 {[%clk 0:01:26.5]} 29. Qg5 {[%clk
0:01:48.4]} 29... Rxb2 {[%clk 0:01:26.2]} 30. Qxd8+ {[%clk 0:01:47.3]} 30... Kh7
{[%clk 0:01:25.6]} 31. Qg5 {[%clk 0:01:46.6]} 31... g6 {[%clk 0:01:17.5]} 32.
Bc5 {[%clk 0:01:42.5]} 32... Qb5 {[%clk 0:01:11.6]} 33. Rg1 {[%clk 0:01:39.7]}
33... Rb3 {[%clk 0:01:02.3]} 34. Kh2 {[%clk 0:01:37.3]} 34... Qe8 {[%clk
0:01:01.3]} 35. Qe7 {[%clk 0:01:34.7]} 35... Qg8 {[%clk 0:00:58.6]} 36. Rd1
{[%clk 0:01:27.3]} 36... Qg7 {[%clk 0:00:51.6]} 37. Rd7 {[%clk 0:01:25.4]} 37...
Kg8 {[%clk 0:00:49.4]} 38. Qe8+ {[%clk 0:01:23.6]} 1-0

[Event "*** Titled Tuesday Blitz"]
[Site "Chess.com"]
[Date "2020.05.05"]
[Round "2"]
[White "grzechu96"]
[Black "DDTerziev04"]
[Result "1-0"]
[WhiteElo "2595"]
[BlackElo "2306"]
[TimeControl "180+1"]
[EndTime "10:16:38 PDT"]
[Termination "grzechu96 won by resignation"]

1. e4 {[%clk 0:03:00.9]} 1... e6 {[%clk 0:02:59.4]} 2. d4 {[%clk 0:03:00.7]}
2... d5 {[%clk 0:02:59.7]} 3. Nc3 {[%clk 0:03:01.2]} 3... Bb4 {[%clk 0:02:58]}
4. exd5 {[%clk 0:03:01.4]} 4... exd5 {[%clk 0:02:57.7]} 5. Bd3 {[%clk
0:03:01.7]} 5... Ne7 {[%clk 0:02:56.3]} 6. Qh5 {[%clk 0:03:00.8]} 6... h6 {[%clk
0:02:41.5]} 7. Nf3 {[%clk 0:02:56.8]} 7... Nbc6 {[%clk 0:02:37.4]} 8. O-O {[%clk
0:02:40.6]} 8... Be6 {[%clk 0:02:37]} 9. a3 {[%clk 0:02:37]} 9... Bxc3 {[%clk
0:02:36.7]} 10. bxc3 {[%clk 0:02:37.3]} 10... Qd7 {[%clk 0:02:36.7]} 11. Ng5
{[%clk 0:02:36.7]} 11... O-O-O {[%clk 0:02:28.1]} 12. Nxe6 {[%clk 0:02:30.2]}
12... fxe6 {[%clk 0:02:22.8]} 13. Bf4 {[%clk 0:02:24.4]} 13... g5 {[%clk
0:02:18.5]} 14. Bg3 {[%clk 0:02:24]} 14... Nf5 {[%clk 0:02:18.1]} 15. Rae1
{[%clk 0:02:22]} 15... Rdf8 {[%clk 0:02:15]} 16. Qg6 {[%clk 0:02:19.4]} 16...
Nd8 {[%clk 0:02:04.7]} 17. Re2 {[%clk 0:02:12.2]} 17... Rhg8 {[%clk 0:01:59.3]}
18. Qh5 {[%clk 0:02:12]} 18... Nxg3 {[%clk 0:01:49.7]} 19. hxg3 {[%clk
0:02:10.8]} 19... Rf6 {[%clk 0:01:48.6]} 20. f4 {[%clk 0:02:06.9]} 20... gxf4
{[%clk 0:01:42.9]} 21. Rxf4 {[%clk 0:01:59.3]} 21... Rxf4 {[%clk 0:01:36.4]} 22.
gxf4 {[%clk 0:02:00.2]} 22... Qg7 {[%clk 0:01:33.4]} 23. Qe5 {[%clk 0:01:47.6]}
23... Qxe5 {[%clk 0:01:16.9]} 24. Rxe5 {[%clk 0:01:43]} 24... c6 {[%clk
0:01:09.7]} 25. Rh5 {[%clk 0:01:40.9]} 25... Rf8 {[%clk 0:01:07.1]} 26. Rxh6
{[%clk 0:01:35.8]} 26... Rxf4 {[%clk 0:01:05.8]} 27. g3 {[%clk 0:01:36.4]} 27...
Rf3 {[%clk 0:01:02.9]} 28. Kg2 {[%clk 0:01:36.3]} 28... Re3 {[%clk 0:01:03.4]}
29. Kf2 {[%clk 0:01:36.7]} 29... Rxd3 {[%clk 0:00:52.1]} 30. cxd3 {[%clk
0:01:37.6]} 30... b5 {[%clk 0:00:50.6]} 31. g4 {[%clk 0:01:35.9]} 31... Kd7
{[%clk 0:00:50.4]} 32. Rh7+ {[%clk 0:01:35.7]} 32... Ke8 {[%clk 0:00:49.7]} 33.
Rxa7 {[%clk 0:01:35.8]} 33... Nf7 {[%clk 0:00:49.9]} 34. Kg3 {[%clk 0:01:35.4]}
34... e5 {[%clk 0:00:46.4]} 35. dxe5 {[%clk 0:01:31.6]} 35... Nxe5 {[%clk
0:00:47.3]} 36. d4 {[%clk 0:01:31.2]} 36... Nc4 {[%clk 0:00:46]} 37. g5 {[%clk
0:01:31.2]} 37... Kf8 {[%clk 0:00:45.6]} 38. Kf4 {[%clk 0:01:31.5]} 38... Nb2
{[%clk 0:00:45.1]} 39. Kf5 {[%clk 0:01:30.6]} 39... Nd1 {[%clk 0:00:44.4]} 1-0

[Event "*** Titled Tuesday Blitz"]
[Site "Chess.com"]
[Date "2020.05.05"]
[Round "2"]
[White "joksijoksi"]
[Black "algatar2020"]
[Result "0-1"]
[WhiteElo "2332"]
[BlackElo "1843"]
[TimeControl "180+1"]
[EndTime "10:16:41 PDT"]
[Termination "algatar2020 won on time"]

1. d4 {[%clk 0:03:00.9]} 1... g6 {[%clk 0:03:00.9]} 2. g3 {[%clk 0:02:59.7]}
2... Bg7 {[%clk 0:02:58.6]} 3. Bg2 {[%clk 0:02:57.3]} 3... d6 {[%clk 0:02:58.6]}
4. e4 {[%clk 0:02:57.1]} 4... c6 {[%clk 0:02:59.5]} 5. Ne2 {[%clk 0:02:55.8]}
5... Qc7 {[%clk 0:03:00.4]} 6. Nbc3 {[%clk 0:02:54.7]} 6... e5 {[%clk
0:03:00.6]} 7. O-O {[%clk 0:02:54.3]} 7... Nf6 {[%clk 0:02:58.8]} 8. h3 {[%clk
0:02:54.4]} 8... O-O {[%clk 0:02:57.1]} 9. a4 {[%clk 0:02:53.3]} 9... Be6 {[%clk
0:02:49.7]} 10. Be3 {[%clk 0:02:44.5]} 10... Nbd7 {[%clk 0:02:47.6]} 11. d5
{[%clk 0:02:29.4]} 11... cxd5 {[%clk 0:02:44.1]} 12. exd5 {[%clk 0:02:30.3]}
12... Bf5 {[%clk 0:02:41.5]} 13. g4 {[%clk 0:02:30.3]} 13... Nxg4 {[%clk
0:02:32.2]} 14. hxg4 {[%clk 0:02:28.7]} 14... Bxg4 {[%clk 0:02:32.9]} 15. Qd2
{[%clk 0:02:04.5]} 15... f5 {[%clk 0:02:15.3]} 16. Bg5 {[%clk 0:01:44.2]} 16...
f4 {[%clk 0:02:05]} 17. Be7 {[%clk 0:01:39.4]} 17... Rf7 {[%clk 0:01:56.7]} 18.
Nb5 {[%clk 0:01:39]} 18... Qb6 {[%clk 0:01:50.4]} 19. Bxd6 {[%clk 0:00:40.7]}
19... f3 {[%clk 0:01:45.7]} 20. Nec3 {[%clk 0:00:05.7]} 20... fxg2 {[%clk
0:01:40.3]} 21. Kxg2 {[%clk 0:00:05.5]} 21... a6 {[%clk 0:01:31.9]} 22. Bc7
{[%clk 0:00:04.8]} 22... Qf6 {[%clk 0:01:27.2]} 0-1